[Event "GER-ch Youth U12W 2020"]
[Site "Willingen"]
[Date "2020.10.30"]
[Round "6.7"]
[White "Margaryan, Venera"]
[Black "Hergenröder, Cora"]
[Result "0-1"]
[ECO "D55"]
[WhiteElo "1457"]
[BlackElo "1422"]
[Annotator "NA RC"]
[PlyCount "78"]
[EventDate "2020.10.27"]
[EventType "swiss"]
[EventRounds "7"]
[EventCountry "GER"]
[SourceTitle "playchess.com"]
[Source "ChessBase"]
[SourceQuality "1"]
[TimeControl "40/5400+30:1800+30"]

1. d4 {[%emt 0:00:00]} d5 {[%emt 0:00:00]} 2. c4 {[%emt 0:00:00]} e6 {[%emt 0:00:00]} 3. Nc3 {[%emt 0:00:00]} Nf6 {[%emt 0:00:12]} 4. Bg5 {[%emt 0:00:00]} Be7 {[%emt 0:00:08]} 5. e3 {[%emt 0:00:10]} O-O {[%emt 0:00:32]} 6. Nf3 {[%emt 0:00:11]} b6 {[%emt 0:00:59]} 7. Bd3 {[%emt 0:00:39]} Bb7 {[%emt 0:00:32]} 8. cxd5 {[%emt 0:00:45]} exd5 {[%emt 0:01:04]} 9. Qc2 {[%emt 0:00:36]} Nbd7 {[%emt 0:01:13]} 10. h4 {[%emt 0:01:21]} h6 {[%emt 0:04:00]} 11. Bxf6 {[%emt 0:00:11]} Nxf6 {[%emt 0:00:21]} 12. Ne5 {[%emt 0:00:38]} Rc8 {[%emt 0:05:12]} 13. O-O-O {[%emt 0:02:00]} c5 {[%emt 0:00:43]} 14. g4 {[%emt 0:05:12]} cxd4 {[%emt 0:02:16]} 15. exd4 {[%emt 0:00:44]} Ne4 {[%emt 0:06:25]} 16. Bxe4 {[%emt 0:07:00]} dxe4 {[%emt 0:00:14]} 17. h5 {[%emt 0:13:22]} e3 {[%emt 0:03:24]} 18. Rh3 {[%emt 0:03:46]} exf2 {[%emt 0:03:57]} 19. Qxf2 {[%emt 0:02:00]} Be4 {[%emt 0:08:15]} 20. Nf3 {[%emt 0:06:30]} b5 {[%emt 0:09:27]} 21. Nd2 {[%emt 0:09:38]} Bg5 {[%emt 0:01:36]} 22. Re1 {[%emt 0:03:42]} Re8 {[%emt 0:04:39]} 23. Kd1 {[%emt 0:02:05]} Bh7 {[%emt 0:07:37]} 24. Nf3 {[%emt 0:14:26]} b4 {[%emt 0:05:35]} 25. Rxe8+ {[%emt 0:02:56]} Qxe8 {[%emt 0:00:08]} 26. Nxg5 {[%emt 0:00:56]} hxg5 {[%emt 0:04:46]} 27. Ne2 {[%emt 0:03:14]} Qc6 {[%emt 0:05:30]} 28. Ke1 {[%emt 0:02:36]} Qc2 {[%emt 0:09:15]} 29. Rb3 {[%emt 0:01:56]} Re8 {[%emt 0:06:36]} 30. Qf3 {[%emt 0:05:23]} Qb1+ {[%emt 0:06:06]} 31. Kf2 {[%emt 0:01:00]} Bc2 {[%emt 0:00:47]} 32. Rxb4 {[%emt 0:01:25]} Bd1 {[%emt 0:00:22]} 33. Kg3 {[%emt 0:08:59]} Bxe2 {[%emt 0:00:58]} 34. Qf2 {[%emt 0:01:23]} Qe4 {[%emt 0:01:53]} 35. Kh2 {[%emt 0:01:35]} Qxg4 {[%emt 0:01:12]} 36. Rb7 {[%emt 0:00:44]} Qxh5+ {[%emt 0:00:13]} 37. Kg1 {[%emt 0:00:18]} Bf3 {[%emt 0:00:18]} 38. Qg3 {[%emt 0:01:07]} Qh1+ {[%emt 0:00:40]} 39. Kf2 {[%emt 0:00:13]} Re2# 0-1

[Event "GER-ch Youth U12W 2020"]
[Site "Willingen"]
[Date "2020.10.30"]
[Round "6.8"]
[White "Fock, Madiha"]
[Black "Bangiev, Katharina"]
[Result "1/2-1/2"]
[ECO "B06"]
[WhiteElo "1258"]
[BlackElo "1539"]
[Annotator "NA RC"]
[PlyCount "47"]
[EventDate "2020.10.27"]
[EventType "swiss"]
[EventRounds "7"]
[EventCountry "GER"]
[SourceTitle "playchess.com"]
[Source "ChessBase"]
[SourceQuality "1"]
[TimeControl "40/5400+30:1800+30"]

1. e4 {[%emt 0:00:00]} d6 {[%emt 0:00:00]} 2. d4 {[%emt 0:00:00]} g6 {[%emt 0:00:00]} 3. Nc3 {[%emt 0:00:08]} Bg7 {[%emt 0:00:00]} 4. Be3 {[%emt 0:00:33]} Nf6 {[%emt 0:00:01]} 5. f3 {[%emt 0:00:12]} O-O {[%emt 0:00:13]} 6. Qd2 {[%emt 0:00:23]} Nc6 {[%emt 0:00:13]} 7. O-O-O {[%emt 0:00:57]} e5 {[%emt 0:00:36]} 8. d5 {[%emt 0:00:37]} Ne7 {[%emt 0:00:06]} 9. g4 {[%emt 0:05:36]} h5 {[%emt 0:07:04]} 10. h4 {[%emt 0:05:18]} Kh7 {[%emt 0:01:48]} 11. Nge2 {[%emt 0:06:42]} Rh8 {[%emt 0:01:53]} 12. Bg5 {[%emt 0:08:43]} Kg8 {[%emt 0:09:21]} 13. Bxf6 {[%emt 0:06:56]} Bxf6 {[%emt 0:00:34]} 14. g5 {[%emt 0:00:39]} Bg7 {[%emt 0:00:14]} 15. f4 {[%emt 0:04:22]} exf4 {[%emt 0:05:20]} 16. Qxf4 {[%emt 0:00:34]} Be5 {[%emt 0:00:10]} 17. Qf2 {[%emt 0:02:48]} c6 {[%emt 0:03:34]} 18. Bg2 {[%emt 0:03:23]} cxd5 {[%emt 0:03:33]} 19. Rhf1 {[%emt 0:05:56]} Rh7 {[%emt 0:01:02]} 20. exd5 {[%emt 0:01:37]} Nf5 {[%emt 0:04:37]} 21. Ne4 {[%emt 0:03:56]} Qa5 {[%emt 0:09:50]} 22. a3 {[%emt 0:04:28]} b5 {[%emt 0:04:12]} 23. Rd3 {[%emt 0:02:31]} Ba6 {[%emt 0:05:55]} 24. Rb3 {[%emt 0:07:59]} 1/2-1/2

[Event "GER-ch Youth U12W 2020"]
[Site "Willingen"]
[Date "2020.10.30"]
[Round "6.9"]
[White "Moldovan, Stela"]
[Black "Peglau, Dora"]
[Result "0-1"]
[ECO "B10"]
[WhiteElo "1219"]
[BlackElo "1683"]
[Annotator "NA RC"]
[PlyCount "108"]
[EventDate "2020.10.27"]
[EventType "swiss"]
[EventRounds "7"]
[EventCountry "GER"]
[SourceTitle "playchess.com"]
[Source "ChessBase"]
[SourceQuality "1"]
[TimeControl "40/5400+30:1800+30"]

1. e4 {[%emt 0:00:50]} c6 {[%emt 0:00:00]} 2. c4 {[%emt 0:00:14]} d5 {[%emt 0:00:00]} 3. exd5 {[%emt 0:00:13]} cxd5 {[%emt 0:00:00]} 4. cxd5 {[%emt 0:00:07]} Nf6 {[%emt 0:00:00]} 5. Bb5+ {[%emt 0:00:10]} Bd7 {[%emt 0:00:28]} 6. Bxd7+ {[%emt 0:00:13]} Nbxd7 {[%emt 0:00:09]} 7. Nc3 {[%emt 0:00:08]} Nb6 {[%emt 0:00:38]} 8. Nf3 {[%emt 0:00:24]} Nbxd5 {[%emt 0:01:23]} 9. Nxd5 {[%emt 0:00:18]} Nxd5 {[%emt 0:00:33]} 10. d4 {[%emt 0:00:28]} e6 {[%emt 0:00:14]} 11. Ne5 {[%emt 0:00:44]} Bb4+ {[%emt 0:00:41]} 12. Bd2 {[%emt 0:00:13]} Bxd2+ {[%emt 0:00:46]} 13. Qxd2 {[%emt 0:00:17]} Rc8 {[%emt 0:00:24]} 14. O-O {[%emt 0:00:26]} O-O {[%emt 0:00:25]} 15. Rac1 {[%emt 0:00:15]} Qd6 {[%emt 0:01:14]} 16. h3 {[%emt 0:00:27]} Nf6 {[%emt 0:00:32]} 17. Rfd1 {[%emt 0:02:14]} Rxc1 {[%emt 0:00:54]} 18. Qxc1 {[%emt 0:00:16]} Rd8 {[%emt 0:00:22]} 19. Nf3 {[%emt 0:00:21]} Qb6 {[%emt 0:02:35]} 20. Qc2 {[%emt 0:03:40]} Nd5 {[%emt 0:00:34]} 21. Qb3 {[%emt 0:03:34]} Qxb3 {[%emt 0:01:31]} 22. axb3 {[%emt 0:00:41]} Rc8 {[%emt 0:00:17]} 23. Ne5 {[%emt 0:00:54]} Rc2 {[%emt 0:00:27]} 24. Nd3 {[%emt 0:00:07]} Kf8 {[%emt 0:00:53]} 25. Kf1 {[%emt 0:00:24]} Ne7 {[%emt 0:00:54]} 26. Rc1 {[%emt 0:00:31]} Rxc1+ {[%emt 0:00:09]} 27. Nxc1 {[%emt 0:00:06]} Nc6 {[%emt 0:00:20]} 28. Ne2 {[%emt 0:00:08]} Na5 {[%emt 0:00:34]} 29. b4 {[%emt 0:00:30]} Nc4 {[%emt 0:00:18]} 30. b3 {[%emt 0:01:37]} Nd2+ {[%emt 0:00:16]} 31. Ke1 {[%emt 0:00:12]} Nxb3 {[%emt 0:00:47]} 32. Kd1 {[%emt 0:00:10]} a5 {[%emt 0:00:03]} 33. Kc2 {[%emt 0:00:06]} a4 {[%emt 0:00:24]} 34. Nc3 {[%emt 0:00:13]} Nxd4+ {[%emt 0:00:25]} 35. Kb2 {[%emt 0:00:27]} b5 {[%emt 0:00:25]} 36. Ne4 {[%emt 0:01:04]} Ke7 {[%emt 0:00:42]} 37. Kc3 {[%emt 0:00:23]} e5 {[%emt 0:02:12]} 38. f4 {[%emt 0:00:20]} Ne2+ {[%emt 0:00:06]} 39. Kd2 {[%emt 0:00:13]} Nxf4 {[%emt 0:00:15]} 40. Nc3 {[%emt 0:02:07]} f5 {[%emt 0:01:32]} 41. Nxb5 {[%emt 0:31:47]} Nd5 {[%emt 0:30:35]} 42. g3 {[%emt 0:00:52]} Nxb4 {[%emt 0:00:11]} 43. Nc3 {[%emt 0:00:26]} a3 {[%emt 0:00:06]} 44. Kc1 {[%emt 0:00:20]} e4 {[%emt 0:00:13]} 45. Kb1 {[%emt 0:00:47]} a2+ {[%emt 0:00:42]} 46. Nxa2 {[%emt 0:00:05]} Nxa2 {[%emt 0:00:06]} 47. Kxa2 {[%emt 0:00:02]} e3 {[%emt 0:00:10]} 48. Kb2 {[%emt 0:00:11]} e2 {[%emt 0:00:05]} 49. Kc3 {[%emt 0:00:03]} e1=Q+ {[%emt 0:00:09]} 50. Kc4 {[%emt 0:00:03]} Qd2 {[%emt 0:00:11]} 51. Kb3 {[%emt 0:00:07]} Kd6 {[%emt 0:00:06]} 52. Ka4 {[%emt 0:00:09]} Qb2 {[%emt 0:00:07]} 53. Ka5 {[%emt 0:00:04]} Kc5 {[%emt 0:00:06]} 54. Ka6 {[%emt 0:00:09]} Qb6# {[%emt 0:00:07]} 0-1

[Event "GER-ch Youth U12W 2020"]
[Site "Willingen"]
[Date "2020.10.30"]
[Round "6.10"]
[White "Jacobasch, Ronja"]
[Black "Cerkez, Lorena"]
[Result "1/2-1/2"]
[ECO "A05"]
[WhiteElo "1549"]
[BlackElo "1258"]
[Annotator "NA RC"]
[PlyCount "84"]
[EventDate "2020.10.27"]
[EventType "swiss"]
[EventRounds "7"]
[EventCountry "GER"]
[SourceTitle "playchess.com"]
[Source "ChessBase"]
[SourceQuality "1"]
[TimeControl "40/5400+30:1800+30"]

1. Nf3 {[%emt 0:00:00]} Nf6 {[%emt 0:00:00]} 2. d3 {[%emt 0:00:00]} g6 {[%emt 0:00:00]} 3. g3 {[%emt 0:00:01]} Bg7 {[%emt 0:00:00]} 4. Bg2 {[%emt 0:00:10]} O-O {[%emt 0:00:00]} 5. O-O {[%emt 0:00:06]} d6 {[%emt 0:00:00]} 6. e4 {[%emt 0:00:14]} c5 {[%emt 0:00:02]} 7. Nbd2 {[%emt 0:00:19]} Nc6 {[%emt 0:00:08]} 8. Re1 {[%emt 0:11:49]} e5 {[%emt 0:00:08]} 9. Nc4 {[%emt 0:00:48]} b5 {[%emt 0:00:25]} 10. Ne3 {[%emt 0:00:25]} h6 {[%emt 0:04:55]} 11. c3 {[%emt 0:05:50]} Kh7 {[%emt 0:00:17]} 12. Nc2 {[%emt 0:00:48]} Qe8 {[%emt 0:31:30]} 13. d4 {[%emt 0:07:44]} cxd4 {[%emt 0:08:12]} 14. cxd4 {[%emt 0:00:49]} a6 {[%emt 0:08:06]} 15. dxe5 {[%emt 0:04:52]} dxe5 {[%emt 0:00:12]} 16. Bd2 {[%emt 0:05:22]} Nh5 {[%emt 0:05:54]} 17. Nb4 {[%emt 0:07:00]} Bd7 {[%emt 0:01:30]} 18. Nd5 {[%emt 0:03:31]} Rc8 {[%emt 0:03:18]} 19. Rc1 {[%emt 0:03:24]} Qd8 {[%emt 0:08:08]} 20. Be3 {[%emt 0:02:58]} Rb8 {[%emt 0:01:56]} 21. Rc2 {[%emt 0:05:49]} Nf6 {[%emt 0:08:46]} 22. Bc5 {[%emt 0:03:53]} Re8 {[%emt 0:01:01]} 23. Bd6 {[%emt 0:06:03]} Rb7 {[%emt 0:00:20]} 24. Rd2 {[%emt 0:05:51]} Bg4 {[%emt 0:03:58]} 25. Nxf6+ {[%emt 0:01:18]} Qxf6 {[%emt 0:00:16]} 26. h3 {[%emt 0:02:48]} Bxf3 {[%emt 0:01:23]} 27. Qxf3 {[%emt 0:02:05]} Qxf3 28. Bxf3 {[%emt 0:00:09]} Nd4 {[%emt 0:00:45]} 29. Bg2 {[%emt 0:00:48]} Rd7 {[%emt 0:01:28]} 30. Bb4 {[%emt 0:02:46]} Bf8 {[%emt 0:02:14]} 31. Bc3 {[%emt 0:01:04]} Bc5 {[%emt 0:01:39]} 32. Kf1 {[%emt 0:01:33]} Red8 {[%emt 0:04:54]} 33. Red1 {[%emt 0:00:18]} b4 {[%emt 0:01:27]} 34. Bxd4 {[%emt 0:00:29]} Rxd4 {[%emt 0:00:34]} 35. Rxd4 {[%emt 0:00:24]} Bxd4 {[%emt 0:01:39]} 36. f4 {[%emt 0:02:16]} f6 {[%emt 0:02:01]} 37. b3 {[%emt 0:01:41]} Rc8 {[%emt 0:00:06]} 38. fxe5 {[%emt 0:01:12]} fxe5 {[%emt 0:00:16]} 39. Ke2 {[%emt 0:02:04]} Rc2+ {[%emt 0:01:16]} 40. Rd2 {[%emt 0:00:13]} Rc8 {[%emt 0:00:23]} 41. g4 {[%emt 0:30:57]} Rf8 42. Bf1 Rf2+ 1/2-1/2

[Event "GER-ch Youth U12W 2020"]
[Site "Willingen"]
[Date "2020.10.30"]
[Round "6.11"]
[White "Bakó, Evelin"]
[Black "Rodermel, Leonie"]
[Result "0-1"]
[ECO "C10"]
[WhiteElo "1192"]
[BlackElo "1370"]
[Annotator "NA RC"]
[PlyCount "132"]
[EventDate "2020.10.27"]
[EventType "swiss"]
[EventRounds "7"]
[EventCountry "GER"]
[SourceTitle "playchess.com"]
[Source "ChessBase"]
[SourceQuality "1"]
[TimeControl "40/5400+30:1800+30"]

1. e4 {[%emt 0:00:00]} e6 {[%emt 0:00:00]} 2. d4 {[%emt 0:00:00]} d5 {[%emt 0:00:00]} 3. Nd2 {[%emt 0:00:00]} dxe4 {[%emt 0:00:00]} 4. Nxe4 {[%emt 0:00:15]} Bd7 {[%emt 0:00:02]} 5. Nf3 {[%emt 0:00:39]} Bc6 {[%emt 0:00:17]} 6. Bd3 {[%emt 0:00:40]} Nd7 {[%emt 0:00:14]} 7. O-O {[%emt 0:02:05]} Ngf6 {[%emt 0:00:23]} 8. Nxf6+ {[%emt 0:00:34]} Nxf6 {[%emt 0:00:08]} 9. c3 {[%emt 0:01:24]} Bxf3 {[%emt 0:00:42]} 10. Qxf3 {[%emt 0:00:21]} c6 {[%emt 0:00:40]} 11. Bg5 {[%emt 0:01:55]} Be7 {[%emt 0:00:15]} 12. Rfe1 {[%emt 0:05:37]} O-O {[%emt 0:01:19]} 13. Bd2 {[%emt 0:06:55]} Qc7 {[%emt 0:05:43]} 14. Bf4 {[%emt 0:02:39]} Bd6 {[%emt 0:02:45]} 15. Be5 {[%emt 0:00:39]} Bxe5 {[%emt 0:03:48]} 16. Rxe5 {[%emt 0:01:16]} h6 {[%emt 0:04:56]} 17. Rae1 {[%emt 0:01:22]} Rad8 {[%emt 0:01:53]} 18. Qh3 {[%emt 0:05:14]} Rd5 {[%emt 0:05:06]} 19. f4 {[%emt 0:01:42]} Rxe5 {[%emt 0:08:18]} 20. fxe5 {[%emt 0:00:29]} Nh7 {[%emt 0:08:30]} 21. Bc2 {[%emt 0:10:35]} Rd8 {[%emt 0:02:20]} 22. Qd3 {[%emt 0:02:37]} Nf8 {[%emt 0:00:52]} 23. Qg3 {[%emt 0:09:27]} c5 {[%emt 0:10:22]} 24. Qd3 {[%emt 0:01:53]} cxd4 {[%emt 0:00:53]} 25. cxd4 {[%emt 0:00:13]} Qb6 {[%emt 0:05:49]} 26. Rf1 {[%emt 0:03:19]} Qxd4+ {[%emt 0:01:06]} 27. Qxd4 {[%emt 0:00:04]} Rxd4 {[%emt 0:00:07]} 28. Re1 {[%emt 0:01:02]} Nd7 {[%emt 0:04:48]} 29. b3 {[%emt 0:01:57]} b6 {[%emt 0:01:17]} 30. Bb1 {[%emt 0:01:30]} Rd2 {[%emt 0:00:45]} 31. Rc1 {[%emt 0:00:34]} Kf8 {[%emt 0:01:35]} 32. Re1 {[%emt 0:02:43]} Nc5 {[%emt 0:03:36]} 33. b4 {[%emt 0:00:59]} Nd3 {[%emt 0:00:17]} 34. Bxd3 {[%emt 0:00:46]} Rxd3 {[%emt 0:00:04]} 35. Rc1 {[%emt 0:00:22]} g6 {[%emt 0:01:43]} 36. Rc8+ {[%emt 0:00:48]} Kg7 {[%emt 0:00:12]} 37. Rc2 {[%emt 0:00:23]} Re3 {[%emt 0:00:41]} 38. h3 {[%emt 0:01:53]} Rxe5 {[%emt 0:00:11]} 39. Rc7 {[%emt 0:00:29]} a5 {[%emt 0:01:42]} 40. bxa5 {[%emt 0:02:19]} Rxa5 {[%emt 0:01:50]} 41. Rc2 {[%emt 0:30:29]} g5 {[%emt 0:35:04]} 42. g4 {[%emt 0:01:11]} Rc5 {[%emt 0:01:41]} 43. Rb2 {[%emt 0:00:10]} b5 {[%emt 0:00:15]} 44. Kf2 {[%emt 0:00:09]} e5 {[%emt 0:09:19]} 45. Ke3 {[%emt 0:00:43]} f6 {[%emt 0:00:43]} 46. Ke4 {[%emt 0:00:15]} Kg6 {[%emt 0:00:09]} 47. Rh2 {[%emt 0:00:38]} Kf7 {[%emt 0:03:08]} 48. h4 {[%emt 0:00:18]} Rc4+ {[%emt 0:01:13]} 49. Kf3 {[%emt 0:00:18]} Rf4+ {[%emt 0:01:31]} 50. Kg3 {[%emt 0:00:30]} e4 {[%emt 0:00:00]} 51. hxg5 {[%emt 0:00:00]} hxg5 {[%emt 0:00:00]} 52. Rb2 {[%emt 0:00:00]} e3 {[%emt 0:00:00]} 53. Re2 {[%emt 0:00:00]} Re4 {[%emt 0:00:00]} 54. Kf3 {[%emt 0:00:00]} Re5 {[%emt 0:00:00]} 55. Rxe3 {[%emt 0:00:00]} Rxe3+ {[%emt 0:00:00]} 56. Kxe3 {[%emt 0:00:00]} Ke6 {[%emt 0:00:00]} 57. Kd4 {[%emt 0:00:00]} f5 {[%emt 0:00:00]} 58. gxf5+ {[%emt 0:00:00]} Kxf5 {[%emt 0:00:00]} 59. Ke3 {[%emt 0:00:00]} g4 {[%emt 0:00:00]} 60. Kf2 {[%emt 0:00:00]} Ke4 {[%emt 0:00:00]} 61. Kg3 {[%emt 0:00:00]} Kd4 {[%emt 0:00:00]} 62. Kxg4 {[%emt 0:00:00]} Kc3 {[%emt 0:00:00]} 63. Kf3 {[%emt 0:00:00]} Kb2 64. a4 {[%emt 0:00:00]} bxa4 {[%emt 0:00:00]} 65. Ke2 {[%emt 0:00:00]} a3 {[%emt 0:00:00]} 66. Kd2 {[%emt 0:00:00]} a2 {[%emt 0:00:00]} 0-1

[Event "GER-ch Youth U12W 2020"]
[Site "Willingen"]
[Date "2020.10.30"]
[Round "6.12"]
[White "Stepanjan, Marianne"]
[Black "Pröttel, Ela"]
[Result "1-0"]
[ECO "B01"]
[WhiteElo "1351"]
[BlackElo "1229"]
[Annotator "NA RC"]
[PlyCount "83"]
[EventDate "2020.10.27"]
[EventType "swiss"]
[EventRounds "7"]
[EventCountry "GER"]
[SourceTitle "playchess.com"]
[Source "ChessBase"]
[SourceQuality "1"]
[TimeControl "40/5400+30:1800+30"]

1. e4 {[%emt 0:00:00]} d5 {[%emt 0:00:00]} 2. exd5 {[%emt 0:00:00]} Qxd5 {[%emt 0:00:00]} 3. Nc3 {[%emt 0:00:00]} Qa5 {[%emt 0:00:00]} 4. d4 {[%emt 0:00:00]} Nf6 {[%emt 0:00:02]} 5. Bd2 {[%emt 0:00:03]} Bg4 {[%emt 0:01:40]} 6. Nf3 {[%emt 0:17:14]} c6 {[%emt 0:31:05]} 7. Be2 {[%emt 0:03:46]} e6 {[%emt 0:01:28]} 8. h3 {[%emt 0:14:30]} Bf5 {[%emt 0:02:09]} 9. Ne4 {[%emt 0:06:38]} Qc7 {[%emt 0:20:17]} 10. Ng3 {[%emt 0:05:31]} Be4 {[%emt 0:08:44]} 11. Bg5 {[%emt 0:08:59]} Nbd7 {[%emt 0:05:30]} 12. Nxe4 {[%emt 0:09:19]} Nxe4 {[%emt 0:00:13]} 13. Be3 {[%emt 0:01:30]} Be7 {[%emt 0:01:10]} 14. Nd2 {[%emt 0:04:38]} Ndf6 {[%emt 0:00:49]} 15. Bd3 {[%emt 0:02:10]} Nxd2 {[%emt 0:00:42]} 16. Qxd2 {[%emt 0:00:16]} Nd5 {[%emt 0:02:00]} 17. a3 {[%emt 0:03:15]} Rd8 {[%emt 0:01:27]} 18. c4 {[%emt 0:01:55]} Nxe3 {[%emt 0:00:32]} 19. fxe3 {[%emt 0:01:35]} Bh4+ {[%emt 0:01:04]} 20. Kd1 {[%emt 0:01:18]} O-O {[%emt 0:02:33]} 21. Qe2 {[%emt 0:01:13]} Qg3 {[%emt 0:04:25]} 22. Rf1 {[%emt 0:02:32]} Be7 {[%emt 0:09:49]} 23. Rf3 {[%emt 0:05:31]} Qc7 {[%emt 0:01:31]} 24. Kc2 {[%emt 0:02:57]} e5 {[%emt 0:01:38]} 25. Qf2 {[%emt 0:00:57]} exd4 {[%emt 0:00:46]} 26. exd4 {[%emt 0:00:04]} Bf6 {[%emt 0:01:26]} 27. Rxf6 {[%emt 0:04:42]} g6 {[%emt 0:01:26]} 28. Qf4 {[%emt 0:00:41]} Qe7 {[%emt 0:00:53]} 29. Qe5 {[%emt 0:00:55]} Qxe5 {[%emt 0:00:37]} 30. dxe5 {[%emt 0:00:04]} Rfe8 {[%emt 0:00:14]} 31. Re1 {[%emt 0:00:25]} Kg7 {[%emt 0:00:33]} 32. Rd6 {[%emt 0:00:56]} Rxd6 {[%emt 0:00:24]} 33. exd6 {[%emt 0:00:03]} Rd8 {[%emt 0:00:36]} 34. c5 {[%emt 0:00:11]} b6 {[%emt 0:00:28]} 35. b4 {[%emt 0:00:24]} bxc5 {[%emt 0:00:35]} 36. bxc5 {[%emt 0:00:07]} Kf8 {[%emt 0:00:41]} 37. Be4 {[%emt 0:00:23]} Re8 {[%emt 0:00:31]} 38. d7 {[%emt 0:00:22]} Rd8 {[%emt 0:00:21]} 39. Bxc6 {[%emt 0:00:05]} f6 {[%emt 0:00:26]} 40. Re8+ {[%emt 0:00:05]} Rxe8 {[%emt 0:00:42]} 41. dxe8=Q+ {[%emt 0:30:14]} Kg7 {[%emt 0:30:15]} 42. Qe7+ 1-0

[Event "GER-ch Youth U12W 2020"]
[Site "Willingen"]
[Date "2020.10.30"]
[Round "6.13"]
[White "Steinlechner, Katja"]
[Black "Müller, Riyanna"]
[Result "1-0"]
[ECO "D20"]
[WhiteElo "1366"]
[BlackElo "1460"]
[Annotator "NA RC"]
[PlyCount "123"]
[EventDate "2020.10.27"]
[EventType "swiss"]
[EventRounds "7"]
[EventCountry "GER"]
[SourceTitle "playchess.com"]
[Source "ChessBase"]
[SourceQuality "1"]
[TimeControl "40/5400+30:1800+30"]

1. d4 {[%emt 0:00:00]} d5 {[%emt 0:00:00]} 2. c4 {[%emt 0:00:00]} dxc4 {[%emt 0:00:37]} 3. e3 {[%emt 0:00:37]} Nf6 {[%emt 0:01:07]} 4. Bxc4 {[%emt 0:00:37]} e6 {[%emt 0:01:03]} 5. Nc3 {[%emt 0:00:41]} c5 {[%emt 0:01:35]} 6. Nf3 {[%emt 0:02:49]} a6 {[%emt 0:02:25]} 7. a4 {[%emt 0:01:51]} Nc6 {[%emt 0:01:30]} 8. O-O {[%emt 0:01:26]} cxd4 {[%emt 0:02:58]} 9. Nxd4 {[%emt 0:03:04]} Nxd4 {[%emt 0:02:34]} 10. exd4 {[%emt 0:03:27]} Bd6 {[%emt 0:02:47]} 11. Bg5 {[%emt 0:02:21]} h6 {[%emt 0:03:44]} 12. Bh4 {[%emt 0:01:19]} b6 {[%emt 0:04:34]} 13. Qf3 {[%emt 0:03:55]} Ra7 {[%emt 0:03:14]} 14. Bxf6 {[%emt 0:01:11]} Qxf6 {[%emt 0:00:41]} 15. Qxf6 {[%emt 0:00:10]} gxf6 {[%emt 0:00:17]} 16. Ne4 {[%emt 0:01:59]} Be7 {[%emt 0:02:08]} 17. Ng3 {[%emt 0:04:05]} Rg8 {[%emt 0:05:04]} 18. Rfe1 {[%emt 0:06:40]} Bb7 {[%emt 0:03:13]} 19. f3 {[%emt 0:01:41]} f5 {[%emt 0:02:51]} 20. Re2 {[%emt 0:07:07]} Bxf3 {[%emt 0:05:13]} 21. gxf3 {[%emt 0:01:24]} f4 {[%emt 0:00:36]} 22. Rg2 {[%emt 0:02:22]} fxg3 {[%emt 0:01:18]} 23. hxg3 {[%emt 0:00:41]} Kf8 {[%emt 0:03:28]} 24. Kf2 {[%emt 0:03:58]} a5 {[%emt 0:01:58]} 25. g4 {[%emt 0:09:22]} Rd7 {[%emt 0:02:12]} 26. Ke3 {[%emt 0:03:25]} h5 {[%emt 0:05:55]} 27. Rh1 {[%emt 0:04:57]} Bf6 {[%emt 0:04:18]} 28. Rd1 {[%emt 0:01:32]} hxg4 {[%emt 0:02:30]} 29. Rxg4 {[%emt 0:01:38]} Rxg4 {[%emt 0:01:12]} 30. fxg4 {[%emt 0:00:13]} Kg7 {[%emt 0:01:23]} 31. b3 {[%emt 0:13:50]} Kg6 {[%emt 0:05:07]} 32. d5 {[%emt 0:00:50]} Kg5 {[%emt 0:01:35]} 33. Kf3 {[%emt 0:01:05]} Be7 {[%emt 0:02:15]} 34. Rd3 {[%emt 0:01:42]} e5 {[%emt 0:03:23]} 35. Ke4 {[%emt 0:05:14]} Bd6 {[%emt 0:03:13]} 36. Rg3 {[%emt 0:01:43]} Rd8 {[%emt 0:00:43]} 37. Rf3 {[%emt 0:02:25]} f6 {[%emt 0:01:38]} 38. Rf5+ {[%emt 0:01:07]} Kg6 {[%emt 0:03:09]} 39. Kf3 {[%emt 0:02:07]} Rh8 {[%emt 0:01:24]} 40. Bd3 {[%emt 0:03:00]} Kg7 {[%emt 0:00:36]} 41. Rh5 {[%emt 0:30:46]} Rxh5 {[%emt 0:31:28]} 42. gxh5 {[%emt 0:00:05]} Kh6 {[%emt 0:00:36]} 43. Kg4 {[%emt 0:00:51]} Kg7 {[%emt 0:08:54]} 44. Kf5 {[%emt 0:00:43]} Kf7 {[%emt 0:01:25]} 45. h6 {[%emt 0:00:55]} Bf8 {[%emt 0:01:19]} 46. h7 {[%emt 0:00:00]} Bg7 {[%emt 0:00:00]} 47. d6 {[%emt 0:00:00]} Bh8 {[%emt 0:00:00]} 48. d7 {[%emt 0:00:00]} Ke7 {[%emt 0:00:00]} 49. Kg6 {[%emt 0:00:00]} Kxd7 {[%emt 0:00:00]} 50. Kf7 {[%emt 0:00:00]} Kd8 {[%emt 0:00:00]} 51. Kg8 {[%emt 0:00:00]} Ke7 {[%emt 0:00:00]} 52. Kxh8 {[%emt 0:00:00]} Kf8 {[%emt 0:00:00]} 53. Bc4 {[%emt 0:00:00]} e4 {[%emt 0:00:00]} 54. Bd5 {[%emt 0:00:00]} f5 {[%emt 0:00:00]} 55. Bc6 {[%emt 0:00:00]} e3 {[%emt 0:00:00]} 56. Bf3 {[%emt 0:00:00]} Kf7 {[%emt 0:00:00]} 57. Bh5+ {[%emt 0:00:00]} Kf8 {[%emt 0:00:00]} 58. Be2 {[%emt 0:00:00]} Kf7 {[%emt 0:00:00]} 59. Bf3 {[%emt 0:00:00]} Kf8 {[%emt 0:00:00]} 60. Bh5 {[%emt 0:00:00]} f4 {[%emt 0:00:00]} 61. Bf3 {[%emt 0:00:00]} Kf7 {[%emt 0:00:00]} 62. Be2 {[%emt 0:00:00]} 1-0